bitfinex-derivatives/quotes_BTCF0:USTF0_20250724
["timestamp","ask_amount","ask_price","bid_price","bid_amount"]
[1753346224707,7.96581564,118820.0,118810.0,0.5502801]
[1753346224902,7.60501564,118820.0,118810.0,0.5502801]
[1753346225207,7.60501564,118820.0,118810.0,0.2528801]
[1753346225603,7.96581564,118820.0,118810.0,0.2528801]
[1753346226907,7.68508382,118820.0,118810.0,0.2528801]
[1753346227208,7.60501564,118820.0,118810.0,0.2528801]
[1753346227406,7.96581564,118820.0,118810.0,0.2528801]
[1753346227908,7.60501564,118820.0,118810.0,0.2528801]
[1753346228209,7.96581564,118820.0,118810.0,0.2909601]
[1753346230612,7.37969564,118820.0,118810.0,0.2909601]
[1753346230813,7.96581564,118820.0,118810.0,0.2909601]
[1753346231410,7.37969564,118820.0,118810.0,0.2909601]
[1753346231610,7.60497564,118820.0,118810.0,0.2909601]
[1753346232306,7.62312076,118820.0,118810.0,0.2909601]
[1753346232906,7.03704076,118820.0,118810.0,0.2909601]
[1753346233107,6.75630894,118820.0,118810.0,0.3154201]
[1753346233308,6.75630894,118820.0,118810.0,0.98278192]
[1753346233610,7.32424382,118820.0,118810.0,1.01183192]
[1753346234415,7.32424382,118820.0,118810.0,0.7311001]
[1753346234715,7.34238999,118820.0,118810.0,1.01183192]
[1753346237612,7.32424382,118820.0,118810.0,1.01183192]
[1753346240915,7.34239738,118820.0,118810.0,1.01183192]
[1753346241716,7.34239738,118820.0,118810.0,0.7311001]
[1753346242015,7.34239738,118820.0,118810.0,1.01183192]
[1753346242317,7.32424382,118820.0,118810.0,1.01183192]
[1753346243318,6.56992792,118820.0,118810.0,1.01183192]
[1753346243514,7.15596792,118820.0,118810.0,1.01183192]
[1753346244818,6.56992792,118820.0,118810.0,1.01183192]
[1753346245021,7.15596792,118820.0,118810.0,1.01183192]
[1753346246116,7.32420382,118820.0,118810.0,0.7311001]
[1753346246417,7.32420382,118820.0,118810.0,1.01183192]
[1753346247319,7.15596792,118820.0,118810.0,1.01183192]
[1753346248319,7.15596792,118820.0,118810.0,1.0718888]
[1753346248914,7.32420382,118820.0,118810.0,1.3692888]
[1753346249419,7.32420382,118820.0,118810.0,1.30923192]
[1753346249619,7.32420382,118820.0,118810.0,1.3692888]
[1753346251021,7.32420382,118820.0,118810.0,1.08855698]
[1753346251212,7.32420382,118820.0,118810.0,1.3692888]
[1753346253820,7.32420382,118820.0,118810.0,1.30923192]
[1753346254322,7.32420382,118820.0,118810.0,1.0285001]
[1753346254522,7.32420382,118820.0,118810.0,1.30923192]
[1753346254723,7.32412382,118820.0,118810.0,1.0285001]
[1753346254922,7.32412382,118820.0,118810.0,1.30923192]
[1753346257022,6.73816382,118820.0,118810.0,1.30923192]
[1753346257224,7.32412382,118820.0,118810.0,1.30923192]
[1753346259028,6.56992792,118820.0,118810.0,1.30923192]
[1753346259228,6.56992792,118820.0,118810.0,1.23889823]
[1753346259629,7.15588792,118820.0,118810.0,1.44929636]
[1753346260028,7.32412382,118820.0,118810.0,1.44929636]
[1753346260229,7.32412382,118820.0,118810.0,1.23889823]
[1753346261722,7.32412382,118820.0,118810.0,1.29895511]
[1753346264129,7.32412382,118820.0,118810.0,1.23889823]
[1753346264725,7.32412382,118820.0,118810.0,0.79875823]
[1753346264726,7.53452195,118820.0,118810.0,0.79875823]
[1753346265721,7.74492008,118820.0,118810.0,0.67604823]
[1753346265928,8.10572008,118820.0,118810.0,0.4656501]
[1753346266329,8.10572008,118820.0,118810.0,0.67604823]
[1753346266530,8.10568008,118820.0,118810.0,0.37864823]
[1753346266732,7.74488008,118820.0,118810.0,0.37864823]
[1753346267430,7.53448195,118820.0,118810.0,0.37864823]
[1753346267728,7.53448195,118820.0,118810.0,0.46170823]
[1753346269126,7.32408382,118820.0,118810.0,0.2513101]
[1753346269326,7.32408382,118820.0,118810.0,0.2870601]
[1753346271530,7.32408382,118820.0,118810.0,0.56765494]
[1753346272735,7.32408382,118820.0,118810.0,0.62773229]
[1753346273034,7.32404382,118820.0,118810.0,0.70944229]
[1753346273627,7.32404382,118820.0,118810.0,1.07024229]
[1753346273933,7.32404382,118820.0,118810.0,1.01016494]
[1753346274435,7.32400382,118820.0,118810.0,1.01016494]
[1753346275232,7.32400382,118820.0,118810.0,0.7295701]
[1753346275434,7.32400382,118820.0,118810.0,1.01016494]
[1753346276029,7.32400382,118820.0,118810.0,0.64936494]
[1753346276335,7.32400382,118820.0,118810.0,1.01016494]
[1753346278038,7.32400382,118820.0,118810.0,0.64936494]
[1753346279038,7.32400382,118820.0,118810.0,1.01016494]
[1753346279237,7.32400382,118820.0,118810.0,0.97951494]
[1753346280839,7.32400382,118820.0,118810.0,0.6989201]
[1753346281037,7.32400382,118820.0,118810.0,0.61871494]
[1753346282439,7.34216876,118820.0,118810.0,0.61871494]
[1753346282641,7.34216876,118820.0,118810.0,0.2513101]
[1753346283146,7.34216876,118820.0,118810.0,0.2878801]
[1753346283742,7.34216876,118820.0,118810.0,0.56847494]
[1753346284236,7.34216876,118820.0,118810.0,0.2878801]
[1753346284836,8.1097469,118820.0,118810.0,0.1682501]
[1753346285041,0.1682643,118800.0,118790.0,0.6665802]
[1753346285243,0.7540243,118800.0,118790.0,0.72665755]
[1753346285741,0.7540243,118800.0,118790.0,0.69008755]
[1753346286536,0.7540243,118800.0,118790.0,0.72665755]
[1753346286741,0.7540243,118800.0,118790.0,0.72765755]
[1753346287143,0.77218806,118800.0,118790.0,0.6675802]
[1753346287339,0.7540243,118800.0,118790.0,0.94917504]
[1753346287539,0.7540243,118800.0,118790.0,1.02604504]
[1753346287739,0.7540243,118800.0,118790.0,0.7454502]
[1753346287940,0.7540243,118800.0,118790.0,1.02604504]
[1753346289345,0.7540243,118800.0,118790.0,0.7454502]
[1753346289546,0.7540243,118800.0,118790.0,1.02604504]
[1753346289748,0.76222853,118800.0,118790.0,1.02604504]
[1753346290145,0.76222853,118800.0,118790.0,0.72864504]
[1753346291048,0.7540243,118800.0,118790.0,0.72864504]
[1753346291949,0.76221928,118800.0,118790.0,0.72864504]
[1753346292345,0.1682643,118800.0,118790.0,0.78872239]
[1753346292645,0.7539843,118800.0,118790.0,0.72864504]
[1753346293147,0.7539843,118800.0,118790.0,0.4480502]
[1753346294949,0.76247588,118800.0,118790.0,0.4480502]
[1753346295548,1.04307072,118800.0,118790.0,0.4480502]
[1753346296542,1.04307072,118800.0,118790.0,0.3711802]
[1753346296850,1.40387072,118800.0,118790.0,0.3346102]
[1753346297145,1.40387072,118800.0,118790.0,0.3711802]
[1753346297938,1.12327588,118800.0,118790.0,0.3711802]
[1753346298146,1.40387072,118800.0,118790.0,0.3711802]
[1753346299341,1.40387072,118800.0,118790.0,0.43125755]
[1753346299746,1.12327588,118800.0,118790.0,0.50812755]
[1753346300345,1.12327588,118800.0,118790.0,0.4480502]
[1753346301047,0.76247588,118800.0,118790.0,0.4480502]
[1753346301248,0.76247588,118800.0,118790.0,0.50812755]
[1753346302243,1.04307072,118800.0,118790.0,0.43125755]
[1753346303444,0.76247588,118800.0,118790.0,0.48036755]
[1753346303636,0.1682643,118800.0,118790.0,0.78872239]
[1753346303841,0.613193,118810.0,118800.0,0.3619141]
[1753346304041,6.5753319,118820.0,118810.0,0.3618999]
[1753346304340,6.5753319,118820.0,118810.0,1.00329474]
[1753346304341,6.56692792,118820.0,118810.0,1.00329474]
[1753346304545,7.15252792,118820.0,118810.0,1.00329474]
[1753346305138,6.56692792,118820.0,118810.0,1.30069474]
[1753346305340,7.15252792,118820.0,118810.0,1.30069474]
[1753346305750,6.56692792,118820.0,118810.0,1.30069474]
[1753346305945,7.15252792,118820.0,118810.0,1.30069474]
[1753346306749,7.15352792,118820.0,118810.0,1.30069474]
[1753346306944,7.15352792,118820.0,118810.0,1.0200999]
[1753346307149,7.32176362,118820.0,118810.0,1.30069474]
[1753346307353,7.32276362,118820.0,118810.0,1.30069474]
[1753346308751,7.15452792,118820.0,118810.0,1.30069474]
[1753346315660,7.32276362,118820.0,118810.0,1.30069474]
[1753346315845,7.15452792,118820.0,118810.0,1.30069474]
[1753346316052,7.32276362,118820.0,118810.0,1.30069474]
[1753346316356,7.15452792,118820.0,118810.0,1.30069474]
[1753346316857,7.32276362,118820.0,118810.0,1.30069474]
[1753346317055,7.15452792,118820.0,118810.0,1.0200999]
[1753346317254,7.32276362,118820.0,118810.0,1.30069474]
[1753346317854,7.15452792,118820.0,118810.0,1.30069474]
[1753346319657,7.32276362,118820.0,118810.0,1.30069474]
[1753346322359,7.34089952,118820.0,118810.0,1.30069474]
[1753346324066,7.34089952,118820.0,118810.0,1.0200999]
[1753346324264,7.34089952,118820.0,118810.0,1.30069474]
[1753346324565,7.34089952,118820.0,118810.0,0.9432299]
[1753346324959,7.60335846,118820.0,118810.0,0.9432299]
[1753346325264,7.60335846,118820.0,118810.0,1.0206499]
[1753346326569,7.32276362,118820.0,118810.0,1.0206499]
[1753346327267,7.34090555,118820.0,118810.0,1.0206499]
[1753346328668,7.34090555,118820.0,118810.0,0.7232499]
[1753346329071,6.75530555,118820.0,118810.0,0.7232499]
[1753346329367,7.34046555,118820.0,118810.0,0.7232499]
[1753346330768,6.75530555,118820.0,118810.0,0.7232499]
[1753346330967,7.34046555,118820.0,118810.0,0.7232499]
[1753346331268,7.55089209,118820.0,118810.0,0.93367644]
[1753346332370,7.53275016,118820.0,118810.0,0.93367644]
[1753346333274,7.55091473,118820.0,118810.0,0.93367644]
[1753346335777,7.53275016,118820.0,118810.0,0.93367644]
[1753346339783,6.77935446,118820.0,118810.0,0.93367644]
[1753346339987,7.32216342,118820.0,118810.0,0.93367644]
[1753346340782,7.32216342,118820.0,118810.0,0.99375379]
[1753346341181,7.32216342,118820.0,118810.0,0.93367644]
[1753346342083,6.56892792,118820.0,118810.0,0.93367644]
[1753346342286,7.15384792,118820.0,118810.0,1.14410298]
[1753346342481,6.56892792,118820.0,118810.0,1.44150298]
[1753346342677,7.15384792,118820.0,118810.0,1.44150298]
[1753346343077,7.15384792,118820.0,118810.0,1.23107644]
[1753346343880,6.56892792,118820.0,118810.0,1.23107644]
[1753346344082,7.15380792,118820.0,118810.0,1.23107644]
[1753346345484,7.15380792,118820.0,118810.0,1.44150298]
[1753346346985,7.15376792,118820.0,118810.0,1.44990476]
[1753346347190,7.15376792,118820.0,118810.0,1.50992048]
[1753346347691,7.15376792,118820.0,118810.0,1.44990476]
[1753346347883,7.15376792,118820.0,118810.0,1.50991476]
[1753346348280,7.15376792,118820.0,118810.0,1.44990476]
[1753346348486,5.65203079,118820.0,118810.0,2.0786593]
[1753346348683,5.47291499,118820.0,118810.0,2.84373136]
[1753346348884,4.03267113,118820.0,118810.0,2.84359371]
[1753346349190,3.08296913,118820.0,118810.0,2.38743613]
[1753346349392,2.91321623,118820.0,118810.0,2.38743613]
[1753346349593,2.72905263,118820.0,118810.0,2.312546]
[1753346349887,2.69285733,118820.0,118810.0,2.312546]
[1753346350492,2.69285733,118820.0,118810.0,2.38743613]
[1753346350891,2.69185733,118820.0,118810.0,2.38843613]
[1753346351685,2.80583733,118820.0,118810.0,2.38839613]
[1753346351888,2.80583733,118820.0,118810.0,2.38835613]
[1753346352088,2.80483733,118820.0,118810.0,2.38835613]
[1753346352288,2.80483733,118820.0,118810.0,2.13935613]
[1753346353689,2.80483733,118820.0,118810.0,2.064466]
[1753346354789,2.80483733,118820.0,118810.0,1.443136]
[1753346355097,2.97307253,118820.0,118810.0,1.24228914]
[1753346355286,3.55775253,118820.0,118810.0,0.83685168]
[1753346355488,3.55775253,118820.0,118810.0,1.42153168]
[1753346355692,3.55775253,118820.0,118810.0,1.48137932]
[1753346356696,3.55775253,118820.0,118810.0,1.47297754]
[1753346356994,3.55775253,118820.0,118810.0,1.75330386]
[1753346357295,3.55775253,118820.0,118810.0,1.16862386]
[1753346357791,3.55775263,118820.0,118810.0,1.17690029]
[1753346358091,3.38951733,118820.0,118810.0,1.17690029]
[1753346358799,3.38951733,118820.0,118810.0,0.89657397]
[1753346358986,3.38951733,118820.0,118810.0,1.17690029]
[1753346359185,3.38951733,118820.0,118810.0,1.16862386]
[1753346359391,3.55775263,118820.0,118810.0,1.10877622]
[1753346359797,3.55775263,118820.0,118810.0,1.11710305]
[1753346359997,3.38951733,118820.0,118810.0,1.11710305]
[1753346360591,3.38951733,118820.0,118810.0,1.17695069]
[1753346360898,3.55775263,118820.0,118810.0,0.88829754]
[1753346361098,3.55775263,118820.0,118810.0,1.16862386]
[1753346361898,3.38951733,118820.0,118810.0,1.16862386]
[1753346362201,3.38951733,118820.0,118810.0,1.17690379]
[1753346362394,3.55775253,118820.0,118810.0,1.16862386]
[1753346362590,3.55775253,118820.0,118810.0,1.18356736]
[1753346362796,3.55775253,118820.0,118810.0,0.8284499]
[1753346363006,3.55775253,118820.0,118810.0,1.10877622]
[1753346363197,3.55775253,118820.0,118810.0,0.5310499]
[1753346363393,3.55775253,118820.0,118810.0,0.002]
[1753346363394,3.83807885,118820.0,118810.0,0.002]
[1753346363598,3.83807885,118820.0,118810.0,0.23012796]
[1753346364202,3.83807885,118820.0,118810.0,0.5310494]
[1753346364401,3.83807885,118820.0,118810.0,0.59093311]
[1753346365106,3.83807885,118820.0,118810.0,0.5310494]
[1753346367704,3.55775253,118820.0,118810.0,0.5310494]
[1753346367907,3.83807885,118820.0,118810.0,0.5310494]
[1753346369402,2.80483733,118820.0,118810.0,0.60584054]
[1753346369603,3.83795885,118820.0,118810.0,0.60584054]
[1753346370006,3.08516365,118820.0,118810.0,0.60584054]
[1753346370200,3.38935733,118820.0,118810.0,0.88616686]
[1753346371005,3.38935733,118820.0,118810.0,0.99277686]
[1753346371214,3.38935733,118820.0,118810.0,1.0527108]
[1753346371502,3.38935733,118820.0,118810.0,0.97791966]
[1753346371697,3.38935733,118820.0,118810.0,0.69759334]
[1753346371897,3.38935733,118820.0,118810.0,0.97791966]
[1753346372104,2.80483733,118820.0,118810.0,0.97791966]
[1753346372302,3.38939733,118820.0,118810.0,0.97791966]
[1753346372507,3.38939733,118820.0,118810.0,0.91798572]
[1753346374011,3.38935733,118820.0,118810.0,0.6376594]
[1753346374214,3.38935733,118820.0,118810.0,0.91798572]
[1753346375914,3.38935733,118820.0,118810.0,0.6376594]
[1753346376213,3.38935733,118820.0,118810.0,0.91798572]
[1753346377108,3.55759253,118820.0,118810.0,0.5310494]
[1753346377509,3.38935733,118820.0,118810.0,0.5310494]
[1753346377717,3.55759253,118820.0,118810.0,0.5310494]
[1753346378216,3.38935733,118820.0,118810.0,0.5310494]
[1753346378518,2.80483733,118820.0,118810.0,0.5310494]
[1753346378715,3.38931733,118820.0,118810.0,0.81137572]
[1753346379116,3.55755243,118820.0,118810.0,0.81137572]
[1753346379317,3.38931733,118820.0,118810.0,0.5310494]
[1753346381117,3.38931733,118820.0,118810.0,0.59098334]
[1753346382212,3.38931733,118820.0,118810.0,0.5310494]
[1753346382620,3.38931733,118820.0,118810.0,0.60584054]
[1753346383414,3.38931733,118820.0,118810.0,0.88616686]
[1753346383615,3.38931733,118820.0,118810.0,0.60584054]
[1753346384213,3.38931733,118820.0,118810.0,0.5910763]
[1753346384419,3.38931733,118820.0,118810.0,0.87140262]
[1753346385109,2.80483733,118820.0,118810.0,0.90228262]
[1753346385417,3.38927733,118820.0,118810.0,0.97801262]
[1753346385608,2.80483733,118820.0,118810.0,0.97801262]
[1753346385815,3.38927733,118820.0,118810.0,1.02153262]
[1753346386721,3.38927733,118820.0,118810.0,0.97801262]
[1753346389122,3.38927733,118820.0,118810.0,0.91798572]
[1753346389620,3.83783865,118820.0,118810.0,0.5310494]
[1753346389927,3.83783865,118820.0,118810.0,0.59111005]
[1753346390116,3.83783865,118820.0,118810.0,0.1702494]
[1753346391619,3.55751233,118820.0,118810.0,0.1702494]
[1753346391820,3.83783865,118820.0,118810.0,0.1702494]
[1753346392823,3.55751233,118820.0,118810.0,0.1702494]
[1753346393019,3.83783865,118820.0,118810.0,0.1702494]
[1753346394320,3.83783865,118820.0,118810.0,0.24504054]
[1753346395225,3.83783865,118820.0,118810.0,0.1702494]
[1753346396827,3.25339865,118820.0,118810.0,0.1702494]
[1753346397023,3.08516365,118820.0,118810.0,0.5310494]
[1753346397219,3.83775865,118820.0,118810.0,0.59117749]
[1753346398114,3.83775865,118820.0,118810.0,0.23037749]
[1753346398323,3.83775865,118820.0,118810.0,0.59117749]
[1753346400120,3.83775865,118820.0,118800.0,0.4869915]
[1753346400321,0.3354333,118800.0,118790.0,0.613214]
[1753346400516,1.30875962,118800.0,118790.0,0.2103447]
[1753346400721,1.30875962,118800.0,118790.0,0.31548007]
[1753346401123,1.30875962,118800.0,118790.0,0.67628007]
[1753346401324,1.30875962,118800.0,118790.0,0.31548007]
[1753346401721,1.30875962,118800.0,118790.0,0.39063808]
[1753346401928,1.30875962,118800.0,118790.0,0.28950271]
[1753346402229,1.30875962,118800.0,118790.0,0.29250271]
[1753346402629,1.30875962,118800.0,118790.0,0.19702551]
[1753346403030,0.1682775,118790.0,118780.0,0.2103527]
[1753346403329,0.54383127,118790.0,118780.0,0.1682799]
[1753346404429,0.54383127,118790.0,118780.0,0.1712799]
[1753346404730,0.54383127,118790.0,118780.0,0.1742799]
[1753346404929,0.54383127,118790.0,118780.0,0.1712799]
[1753346405231,1.12815127,118790.0,118780.0,0.2820099]
[1753346405630,0.54383127,118790.0,118780.0,0.2820099]
[1753346405828,1.12815127,118790.0,118780.0,0.2820099]
[1753346406626,1.11957382,118790.0,118780.0,0.2820099]
[1753346406927,1.11961382,118790.0,118780.0,0.3151299]
[1753346407127,1.11961382,118790.0,118780.0,0.6759299]
[1753346408027,1.11961382,118790.0,118780.0,0.3151299]
[1753346408328,1.11961382,118790.0,118780.0,0.6759299]
[1753346409528,1.11961382,118790.0,118780.0,0.3151299]
[1753346409728,1.11961382,118790.0,118780.0,0.6759299]
[1753346410431,1.11961382,118790.0,118780.0,0.73598607]
[1753346412028,1.11961382,118790.0,118780.0,0.37518607]
[1753346412229,1.11961382,118790.0,118780.0,0.34206607]
[1753346412932,1.11961382,118790.0,118780.0,0.70286607]
[1753346413333,1.11961382,118790.0,118780.0,0.77573607]
[1753346413933,1.11961382,118790.0,118780.0,0.81205607]
[1753346414134,1.11961382,118790.0,118780.0,0.86678607]
[1753346414632,0.53525382,118790.0,118780.0,0.86678607]
[1753346414826,1.11961382,118790.0,118780.0,0.86678607]
[1753346415029,0.8392875,118790.0,118780.0,0.86678607]
[1753346415232,1.11961382,118790.0,118780.0,0.86678607]
[1753346418934,1.11961382,118790.0,118780.0,0.81205607]
[1753346419136,1.11961382,118790.0,118780.0,0.45125607]
[1753346419433,1.11961382,118790.0,118780.0,0.81205607]
[1753346419634,1.11961382,118790.0,118780.0,0.86678607]
[1753346419936,1.11961382,118790.0,118780.0,0.50598607]
[1753346420138,1.11961382,118790.0,118780.0,0.8067299]
[1753346422036,1.11961382,118790.0,118780.0,0.8818009]
[1753346422537,1.11961382,118790.0,118780.0,0.8067299]
[1753346422738,1.11961382,118790.0,118780.0,0.8818009]
[1753346423239,0.53525382,118790.0,118780.0,0.8818009]
[1753346423639,1.11957382,118790.0,118780.0,0.8067299]
[1753346424544,0.8392475,118790.0,118780.0,0.8067299]
[1753346424731,1.11957382,118790.0,118780.0,0.8067299]
[1753346425141,0.8392475,118790.0,118780.0,0.8067299]
[1753346425339,1.11957382,118790.0,118780.0,0.8067299]
[1753346425640,0.67097,118790.0,118780.0,1.08705622]
[1753346426345,0.08665,118790.0,118780.0,1.08705622]
[1753346426539,0.61859,118790.0,118780.0,1.08705622]
[1753346427247,0.61855,118790.0,118780.0,1.08705622]
[1753346427542,0.7868256,118790.0,118780.0,1.08705622]
[1753346427743,0.8392056,118790.0,118780.0,1.08705622]
[1753346427941,0.67093,118790.0,118780.0,1.08705622]
[1753346428644,0.8392056,118790.0,118780.0,1.08705622]
[1753346428950,0.67093,118790.0,118780.0,1.08705622]
[1753346429140,0.67093,118790.0,118780.0,1.19219159]
[1753346429746,0.50489599,118790.0,118780.0,1.19219159]
[1753346430843,0.50489599,118790.0,118780.0,1.26736863]
[1753346431045,0.2446085,118800.0,118790.0,0.2815656]
[1753346431242,0.03427,118800.0,118790.0,1.09060192]
[1753346431441,0.09418,118810.0,118800.0,0.4494614]
[1753346431746,2.99738233,118820.0,118810.0,0.4494472]
[1753346431946,3.58162233,118820.0,118810.0,0.8703773]
[1753346432138,3.53956103,118820.0,118810.0,0.8703773]
[1753346432648,3.53956103,118820.0,118810.0,0.88542424]
[1753346432947,3.82812888,118820.0,118810.0,0.8102472]
[1753346433246,3.83027888,118820.0,118810.0,0.8102472]
[1753346433745,3.83427888,118820.0,118810.0,0.8102472]
[1753346434539,3.82603735,118820.0,118810.0,0.8102472]
[1753346434845,3.82803735,118820.0,118810.0,0.8102472]
[1753346436045,3.83640995,118820.0,118810.0,0.8102472]
[1753346436248,3.83640995,118820.0,118810.0,0.87034741]
[1753346436446,3.55608363,118820.0,118810.0,0.8102472]
[1753346436647,3.83640995,118820.0,118810.0,0.8102472]
[1753346438851,3.55608363,118820.0,118810.0,0.8102472]
[1753346439046,3.83640995,118820.0,118810.0,0.8102472]
[1753346442152,3.83640995,118820.0,118810.0,0.87034741]
[1753346442754,3.54771103,118820.0,118810.0,0.87034741]
[1753346443053,3.82803735,118820.0,118810.0,0.87034741]
[1753346443248,3.82588735,118820.0,118810.0,0.87034741]
[1753346443453,3.78366765,118820.0,118810.0,0.87034741]
[1753346444155,3.50334133,118820.0,118810.0,0.87034741]
[1753346444354,3.50333033,118820.0,118810.0,1.15067373]
[1753346444558,3.50133033,118820.0,118810.0,0.87034741]
[1753346444855,3.50133033,118820.0,118810.0,1.15927605]
[1753346445353,3.33309733,118820.0,118810.0,1.15927605]
[1753346446158,2.74901733,118820.0,118810.0,1.15927605]
[1753346446350,2.69485733,118820.0,118810.0,1.15927605]
[1753346446556,3.27889733,118820.0,118810.0,1.15927605]
[1753346446755,3.27889733,118820.0,118810.0,1.15067373]
[1753346447354,2.74901733,118820.0,118810.0,1.15067373]
[1753346447753,3.50129033,118820.0,118810.0,1.15067373]
[1753346448059,3.33305733,118820.0,118810.0,1.09879781]
[1753346448258,3.50129033,118820.0,118810.0,0.870326]
[1753346448857,3.50129033,118820.0,118810.0,0.8102472]
[1753346449263,3.50129033,118820.0,118810.0,0.87032032]
[1753346449760,3.50129033,118820.0,118810.0,0.8102472]
[1753346449957,3.50129033,118820.0,118810.0,1.1076472]
[1753346450158,3.33305733,118820.0,118810.0,1.1076472]
[1753346450357,3.33305733,118820.0,118810.0,1.38797352]
[1753346451163,3.50129033,118820.0,118810.0,1.38797352]
[1753346452360,3.50129033,118820.0,118810.0,1.1076472]
[1753346453557,3.50129033,118820.0,118810.0,1.16772032]
[1753346453762,3.50129033,118820.0,118810.0,1.38797352]
[1753346454063,3.50129033,118820.0,118810.0,1.1076472]
[1753346455466,3.50129033,118820.0,118810.0,1.16772032]
[1753346455959,3.78276665,118820.0,118810.0,0.99963032]
[1753346456264,3.78276665,118820.0,118810.0,0.9395572]
[1753346456460,4.14356665,118820.0,118810.0,0.2974]
[1753346457274,4.14356665,118820.0,118810.0,0.4656471]
[1753346457766,4.14356665,118820.0,118810.0,0.52457032]
[1753346457968,4.14356665,118820.0,118810.0,0.45465032]
[1753346458169,3.86324033,118820.0,118810.0,0.45465032]
[1753346458368,4.14356665,118820.0,118810.0,0.45465032]
[1753346458568,0.2523902,118810.0,118790.0,0.28515344]
[1753346458770,0.2523902,118810.0,118800.0,0.2103178]
[1753346459071,0.2523902,118810.0,118800.0,0.1682535]
[1753346459072,0.878415,118810.0,118800.0,0.1682535]
[1753346459267,1.239215,118810.0,118800.0,0.1682535]
[1753346459465,0.655255,118810.0,118800.0,0.1682535]
[1753346459773,1.239215,118810.0,118800.0,0.1682535]
[1753346459972,0.1682613,118800.0,118790.0,0.4203092]
[1753346460162,0.72891394,118800.0,118790.0,0.11311]
[1753346460368,0.1682755,118790.0,118780.0,0.49550854]
[1753346460667,1.03256182,118790.0,118780.0,0.4203315]
[1753346461068,1.03308182,118790.0,118780.0,0.4203315]
[1753346461469,1.03392182,118790.0,118780.0,0.7811315]
[1753346461772,1.03392182,118790.0,118780.0,0.7821315]
[1753346461967,1.03344182,118790.0,118780.0,0.8962615]
[1753346462575,1.03372182,118790.0,118780.0,0.8962615]
[1753346462867,1.03372182,118790.0,118780.0,0.8972615]
[1753346463073,1.03396182,118790.0,118780.0,0.8972615]
[1753346463369,1.04233056,118790.0,118780.0,0.8962615]
[1753346463568,1.04233056,118790.0,118780.0,0.8952615]
[1753346463870,1.04237056,118790.0,118780.0,0.8952615]
[1753346464060,1.03400182,118790.0,118780.0,0.8952615]
[1753346465077,0.1696355,118790.0,118780.0,0.8952615]
[1753346465269,1.03348182,118790.0,118780.0,0.8952615]
[1753346466176,0.44944182,118790.0,118780.0,0.8952615]
[1753346466476,1.03348182,118790.0,118780.0,0.8952615]
[1753346466977,0.44944182,118790.0,118780.0,0.8952615]
[1753346467179,1.03348182,118790.0,118780.0,0.8952615]
[1753346467373,0.7531555,118790.0,118780.0,0.8952615]
[1753346467574,1.03348182,118790.0,118780.0,0.8952615]
[1753346468974,1.03376182,118790.0,118780.0,0.8952615]
[1753346469277,1.03400182,118790.0,118780.0,0.8952615]
[1753346472778,1.03400182,118790.0,118780.0,0.7390604]
[1753346473070,0.1696495,118780.0,118770.0,0.16624]
[1753346473272,0.51570968,118780.0,118770.0,0.6953437]
[1753346473579,1.09978968,118780.0,118770.0,0.6953437]
[1753346473778,1.03405582,118780.0,118770.0,0.6953437]
[1753346474174,1.03405582,118780.0,118770.0,0.3345437]
[1753346474575,1.03405582,118780.0,118770.0,0.3355437]
[1753346475478,1.03405582,118780.0,118770.0,0.16824]
[1753346475686,1.03405582,118780.0,118770.0,0.002]
[1753346475869,1.39485582,118780.0,118770.0,0.002]
[1753346476078,0.1683179,118760.0,118750.0,0.3345643]
[1753346476369,1.03276422,118760.0,118750.0,0.3345643]
[1753346476576,1.31309054,118760.0,118750.0,0.16624]
[1753346476975,0.168332,118750.0,118740.0,0.41344]
[1753346477174,0.44865832,118750.0,118740.0,0.5817862]
[1753346477575,0.44865832,118750.0,118740.0,0.41344]
[1753346477775,0.45717209,118750.0,118740.0,0.41344]
[1753346478074,0.45717209,118750.0,118740.0,0.5817862]
[1753346478271,0.45717209,118750.0,118730.0,0.3345966]
[1753346478272,0.1683462,118740.0,118730.0,0.3345966]
[1753346478475,1.03279252,118740.0,118730.0,0.3345966]
[1753346478678,1.39359252,118740.0,118730.0,0.2803204]
[1753346479283,0.80947252,118740.0,118730.0,0.3346004]
[1753346479582,1.03283252,118740.0,118730.0,0.3366004]
[1753346479972,0.44867252,118740.0,118730.0,0.4042004]
[1753346480171,0.44867252,118740.0,118730.0,0.4477404]
[1753346480380,0.44867252,118740.0,118730.0,0.8085404]
[1753346480576,1.03283252,118740.0,118730.0,0.8085404]
[1753346482982,1.03291252,118740.0,118730.0,0.8085404]
[1753346483886,0.44867252,118740.0,118730.0,0.8085404]
[1753346484078,1.03291252,118740.0,118730.0,0.8085404]
[1753346486670,0.0420853,118750.0,118730.0,0.64018]
[1753346486875,0.1683187,118760.0,118750.0,0.5298583]
[1753346487076,1.07496472,118760.0,118750.0,0.5298583]
[1753346487785,1.07496472,118760.0,118750.0,0.8906583]
[1753346488482,1.07696472,118760.0,118750.0,0.8906583]
[1753346489188,1.07696472,118760.0,118750.0,0.5298583]
[1753346489883,0.49372472,118760.0,118750.0,0.8906583]
[1753346490082,1.07800472,118760.0,118750.0,0.8906583]
[1753346490784,0.7976784,118760.0,118750.0,0.8906583]
[1753346491084,1.07800472,118760.0,118750.0,0.8906583]
[1753346491685,0.7976784,118760.0,118750.0,0.8906583]
[1753346491993,1.07800472,118760.0,118750.0,0.8906583]
[1753346492981,1.07796472,118760.0,118750.0,0.8906583]
[1753346496380,0.003,118760.0,118750.0,0.8906583]
[1753346496585,0.58724,118760.0,118750.0,0.8906583]
[1753346496787,0.567977,118760.0,118750.0,1.17098462]
[1753346497081,0.567977,118760.0,118750.0,0.8906583]
[1753346497788,0.7362948,118760.0,118750.0,0.8906583]
[1753346498690,1.01662112,118760.0,118750.0,0.8906583]
[1753346502690,0.44864412,118760.0,118750.0,0.8906583]
[1753346502892,1.03284412,118760.0,118750.0,0.8906583]
[1753346509002,0.7525178,118760.0,118750.0,1.17098462]
[1753346509299,1.03284412,118760.0,118750.0,0.8906583]
[1753346510097,0.7525178,118760.0,118750.0,0.8906583]
[1753346510295,0.5842,118760.0,118750.0,0.8906583]
[1753346510494,0.5842,118760.0,118750.0,1.17098462]
[1753346510800,0.44863002,118770.0,118760.0,0.4486778]
[1753346511001,1.03275002,118770.0,118760.0,0.8094778]
[1753346512697,1.03475002,118770.0,118760.0,0.8094778]
[1753346513801,1.03575002,118770.0,118760.0,0.8094778]
[1753346514004,0.7554237,118770.0,118760.0,0.8094778]
[1753346514203,1.03575002,118770.0,118760.0,0.8094778]
[1753346518808,0.7554237,118770.0,118760.0,0.8094778]
[1753346519001,1.03575002,118770.0,118760.0,0.8094778]
[1753346520708,0.7554237,118770.0,118760.0,0.8094778]
[1753346521104,1.04439002,118770.0,118760.0,0.8094778]
[1753346521307,1.04503002,118770.0,118760.0,0.8094778]
[1753346521604,1.04495002,118770.0,118760.0,0.8094778]
[1753346521804,0.45163002,118770.0,118760.0,0.4486778]
[1753346522204,1.04515002,118770.0,118760.0,0.4486778]
[1753346523011,1.04515002,118770.0,118750.0,0.35393]
[1753346523012,0.1683178,118760.0,118750.0,0.35393]
[1753346523205,1.08977044,118760.0,118750.0,0.2472]
[1753346523401,0.168332,118750.0,118740.0,0.23214165]